bitfinex/quotes_BTCUSD_20250108
["timestamp","ask_amount","ask_price","bid_price","bid_amount"]
[1736313362425,0.003,96530.0,96529.0,0.3907829]
[1736313362915,0.006,96530.0,96529.0,0.3907829]
[1736313363311,0.00089004,96537.0,96529.0,0.3907829]
[1736313363556,0.003,96531.0,96529.0,0.09903441]
[1736313363816,0.00389004,96530.0,96523.0,0.27640166]
[1736313363989,0.207191,96529.0,96524.0,0.09903441]
[1736313364197,0.00089004,96528.0,96524.0,0.09903441]
[1736313364611,0.00089004,96528.0,96526.0,0.23183656]
[1736313364909,0.00089004,96528.0,96526.0,0.33087097]
[1736313365114,0.02894547,96528.0,96527.0,0.23183656]
[1736313365317,0.02983551,96528.0,96527.0,0.23183656]
[1736313365908,0.02983551,96528.0,96524.0,0.1391719]
[1736313365909,0.02894547,96525.0,96524.0,0.1391719]
[1736313366311,0.02894547,96523.0,96522.0,0.1391719]
[1736313366838,0.03194547,96528.0,96522.0,0.29386341]
[1736313367078,0.00089004,96527.0,96523.0,0.09903441]
[1736313367210,0.004,96525.0,96523.0,0.09903441]
[1736313367411,0.21209104,96525.0,96523.0,0.28459695]
[1736313367617,0.20809104,96525.0,96523.0,0.28459695]
[1736313367837,0.20809104,96525.0,96523.0,0.09903441]
[1736313368021,0.004,96528.0,96523.0,0.09903441]
[1736313368231,0.00089004,96527.0,96523.0,0.09903441]
[1736313368892,0.004,96528.0,96523.0,0.16460457]
[1736313369117,0.013,96528.0,96523.0,0.16460457]
[1736313369332,0.004,96528.0,96524.0,0.0791]
[1736313369537,0.00089004,96538.0,96525.0,0.09903441]
[1736313369762,0.009,96527.0,96525.0,0.09903441]
[1736313370659,0.00089004,96542.0,96525.0,0.23830248]
[1736313370871,0.009,96528.0,96526.0,0.207198]
[1736313371076,0.009,96528.0,96527.0,0.09903441]
[1736313371288,0.009,96528.0,96527.0,0.19806882]
[1736313371493,0.009,96528.0,96527.0,0.28208503]
[1736313372139,0.00089004,96543.0,96528.0,0.207193]
[1736313372404,0.00089004,96543.0,96530.0,0.207189]
[1736313372657,0.00089004,96543.0,96531.0,0.18369657]
[1736313372853,0.00089004,96543.0,96539.0,0.1393727]
[1736313373054,0.0091266,96544.0,96540.0,0.09903441]
[1736313373270,0.00089004,96543.0,96540.0,0.09903441]
[1736313373864,0.01089004,96543.0,96540.0,0.09903441]
[1736313374212,0.00789004,96543.0,96540.0,0.09903441]
[1736313374631,0.01089004,96543.0,96540.0,0.09903441]
[1736313375072,0.00389004,96543.0,96540.0,0.09903441]
[1736313375519,0.01089004,96543.0,96540.0,0.10003441]
[1736313375728,0.01089004,96543.0,96540.0,0.09903441]
[1736313376103,0.01489004,96543.0,96540.0,0.10003441]
[1736313376706,0.01789004,96543.0,96540.0,0.10003441]
[1736313376954,0.00389004,96543.0,96540.0,0.09903441]
[1736313377166,0.21805304,96543.0,96540.0,0.10003441]
[1736313377377,0.207165,96541.0,96540.0,0.001]
[1736313378483,0.207165,96541.0,96527.0,0.23840711]
[1736313378707,0.00089004,96540.0,96528.0,0.09903441]
[1736313378954,0.00089004,96540.0,96528.0,0.19165916]
[1736313379187,0.00089004,96540.0,96530.0,0.207189]
[1736313379434,0.00089004,96540.0,96531.0,0.09903441]
[1736313379435,0.00073333,96540.0,96531.0,0.09903441]
[1736313379850,0.00073333,96540.0,96532.0,0.1393727]
[1736313380055,0.005,96540.0,96533.0,0.09903441]
[1736313380291,0.00073333,96539.0,96533.0,0.09903441]
[1736313381121,0.00073333,96539.0,96534.0,0.07824028]
[1736313381323,0.00073333,96539.0,96535.0,0.09903441]
[1736313382317,0.00073333,96538.0,96535.0,0.09903441]
[1736313382939,0.41507733,96538.0,96533.0,0.1393727]
[1736313383138,0.02894547,96531.0,96530.0,0.1393727]
[1736313383330,0.0296788,96531.0,96530.0,0.1393727]
[1736313383841,0.0526788,96531.0,96530.0,0.1393727]
[1736313384036,0.414446,96514.0,96511.0,0.1393727]
[1736313384264,0.00073333,96513.0,96511.0,0.1393727]
[1736313384433,0.23617347,96512.0,96511.0,0.1393727]
[1736313385201,0.207232,96510.0,96500.0,0.1393727]
[1736313385406,0.00073333,96509.0,96507.0,0.00015303]
[1736313386060,0.23618147,96508.0,96507.0,0.00015303]
[1736313386267,0.72485926,96508.0,96507.0,3e-08]
[1736313386464,0.52445754,96508.0,96507.0,3e-08]
[1736313386667,0.88779114,96508.0,96507.0,3e-08]
[1736313387499,0.89279114,96508.0,96507.0,3e-08]
[1736313388411,0.28016526,96508.0,96507.0,3e-08]
[1736313388628,0.27516526,96508.0,96507.0,3e-08]
[1736313388838,0.28416526,96508.0,96507.0,0.00100003]
[1736313389043,0.28916526,96508.0,96507.0,0.00100003]
[1736313389261,0.28016526,96508.0,96507.0,3e-08]
[1736313389759,0.28416526,96508.0,96507.0,3e-08]
[1736313389951,0.28016526,96508.0,96507.0,3e-08]
[1736313390575,0.27516526,96508.0,96507.0,3e-08]
[1736313391818,0.28416526,96508.0,96507.0,0.00100003]
[1736313392034,0.014,96508.0,96507.0,0.00100003]
[1736313392450,0.009,96508.0,96507.0,0.00100003]
[1736313392873,0.014,96508.0,96507.0,0.10003444]
[1736313393089,0.005,96508.0,96507.0,0.10903788]
[1736313393355,0.00073333,96519.0,96507.0,0.10903788]
[1736313393589,0.00073333,96518.0,96508.0,0.09903441]
[1736313394011,0.207217,96517.0,96508.0,0.09903441]
[1736313394217,0.207234,96509.0,96507.0,3e-08]
[1736313394423,0.0376788,96508.0,96507.0,0.00100003]
[1736313394883,0.0296788,96508.0,96507.0,3e-08]
[1736313395776,0.0376788,96508.0,96507.0,0.00100003]
[1736313396225,0.0406788,96508.0,96507.0,0.00100003]
[1736313396683,0.0296788,96508.0,96507.0,3e-08]
[1736313397973,0.0616788,96508.0,96507.0,0.00100003]
[1736313398195,0.07266259,96508.0,96507.0,3e-08]
[1736313398630,0.08166259,96508.0,96507.0,0.00100003]
[1736313398853,0.330697,96508.0,96507.0,3e-08]
[1736313399081,0.32596367,96508.0,96507.0,0.00100003]
[1736313399297,0.33496367,96508.0,96507.0,0.00100003]
[1736313399515,0.33096367,96508.0,96507.0,3e-08]
[1736313399725,1.06520067,96508.0,96507.0,3e-08]
[1736313399973,0.33496367,96508.0,96507.0,3e-08]
[1736313400831,0.02894547,96491.0,96490.0,0.0001702]
[1736313401049,0.2369518,96491.0,96490.0,0.0001702]
[1736313401262,0.23621847,96491.0,96490.0,0.0001702]
[1736313402071,0.25921847,96491.0,96490.0,0.0001702]
[1736313402276,0.27221847,96491.0,96490.0,0.0011702]
[1736313406445,0.013,96491.0,96490.0,0.0011702]
[1736313406658,0.22100633,96491.0,96490.0,0.0828702]
[1736313406861,0.16994559,96491.0,96490.0,0.0828702]
[1736313407061,0.17067892,96491.0,96490.0,0.0828702]
[1736313408583,0.207264,96495.0,96490.0,0.0828702]
[1736313409687,0.207264,96495.0,96490.0,0.0818702]
[1736313410018,0.216264,96495.0,96490.0,0.0828702]
[1736313410232,0.216264,96495.0,96490.0,0.0818702]
[1736313410681,0.207271,96492.0,96490.0,0.0828702]
[1736313410876,0.207271,96492.0,96490.0,0.0818702]
[1736313412110,0.02894547,96502.0,96491.0,0.15623845]
[1736313412274,0.008,96495.0,96491.0,0.15623845]
[1736313412644,0.207251,96501.0,96491.0,0.15623845]
[1736313412886,0.00073333,96500.0,96491.0,0.15623845]
[1736313413093,0.006,96492.0,96491.0,0.15623845]
[1736313413300,0.00073333,96500.0,96491.0,0.15623845]
[1736313413724,0.008,96495.0,96491.0,0.14903441]
[1736313413973,0.00473333,96502.0,96491.0,0.14803441]
[1736313414179,0.004,96502.0,96492.0,0.10030748]
[1736313414391,0.008,96500.0,96493.0,0.09903441]
[1736313414826,0.012,96500.0,96493.0,0.09903441]
[1736313415287,0.008,96500.0,96493.0,0.09903441]
[1736313415462,0.008,96500.0,96493.0,0.16458678]
[1736313415701,0.004,96500.0,96493.0,0.16458678]
[1736313415913,0.004,96500.0,96499.0,0.284556]
[1736313416116,0.004,96500.0,96499.0,0.17633441]
[1736313416705,0.013,96500.0,96499.0,0.17633441]
[1736313416915,0.009,96500.0,96499.0,0.17633441]
[1736313417249,0.01,96500.0,96499.0,0.17633441]
[1736313417453,0.001,96500.0,96499.0,0.17633441]
[1736313417654,0.001,96500.0,96499.0,0.22124969]
[1736313418491,0.001,96500.0,96499.0,0.17633441]
[1736313418781,0.004,96500.0,96499.0,0.17633441]
[1736313423100,0.004,96500.0,96499.0,0.38030515]
[1736313423505,0.0001528,96508.0,96507.0,0.41915421]
[1736313423712,0.0001528,96508.0,96507.0,0.60866009]
[1736313423919,0.0001528,96508.0,96507.0,0.67971462]
[1736313425147,0.0001528,96508.0,96507.0,0.68071462]
[1736313425675,8.51e-05,96534.0,96517.0,0.07105453]
[1736313425676,0.00073333,96532.0,96517.0,0.07105453]
[1736313425883,8.51e-05,96534.0,96530.0,0.207189]
[1736313426110,8.51e-05,96534.0,96533.0,0.17008894]
[1736313426260,8.51e-05,96534.0,96533.0,0.33370515]
[1736313427399,0.0020851,96534.0,96533.0,0.33370515]
[1736313427624,0.0020851,96534.0,96533.0,0.43273956]
[1736313427979,8.51e-05,96534.0,96533.0,0.43273956]
[1736313428723,0.0050851,96534.0,96533.0,0.43273956]
[1736313428919,8.51e-05,96534.0,96533.0,0.43273956]
[1736313429374,8.51e-05,96534.0,96533.0,0.43573956]
[1736313429506,8.51e-05,96539.0,96538.0,0.27797074]
[1736313429705,0.00023799,96539.0,96538.0,0.47603956]
[1736313430317,0.014672,96551.0,96545.0,0.15507074]
[1736313430544,0.014672,96551.0,96545.0,0.58416215]
[1736313432716,0.014672,96551.0,96545.0,0.58816215]
[1736313432941,0.014672,96551.0,96545.0,0.68719656]
[1736313433153,0.014672,96551.0,96545.0,0.68319656]
[1736313433359,0.014672,96551.0,96545.0,0.68719656]
[1736313433771,0.014672,96551.0,96545.0,0.91863693]
[1736313433901,0.014672,96551.0,96545.0,0.91963693]
[1736313434519,0.014672,96551.0,96545.0,0.68319656]
[1736313434863,0.014672,96551.0,96545.0,0.68819656]
[1736313435282,0.014672,96551.0,96545.0,0.68419656]
[1736313435509,0.014672,96551.0,96545.0,0.68819656]
[1736313435901,0.014672,96551.0,96545.0,0.68419656]
[1736313436109,0.014672,96551.0,96545.0,0.68819656]
[1736313436325,0.014672,96551.0,96545.0,0.54107777]
[1736313436543,0.014672,96551.0,96545.0,0.54207777]
[1736313436779,0.014672,96551.0,96545.0,0.31095062]
[1736313437001,0.014672,96551.0,96545.0,0.38200515]
[1736313437620,0.014672,96551.0,96545.0,0.37800515]
[1736313437827,0.014672,96551.0,96545.0,0.47603956]
[1736313438054,0.0050853,96546.0,96545.0,0.66085454]
[1736313438259,0.0070853,96546.0,96545.0,0.66085454]
[1736313438470,0.014672,96551.0,96545.0,0.66085454]
[1736313438471,0.014672,96551.0,96546.0,0.48632574]
[1736313438671,0.014672,96551.0,96546.0,0.58536015]
[1736313438895,0.014672,96551.0,96546.0,0.68439456]
[1736313441285,0.014672,96551.0,96546.0,0.68539456]
[1736313441492,0.014672,96551.0,96550.0,0.15507074]
[1736313441694,0.014672,96551.0,96550.0,0.33090515]
[1736313442294,0.00726238,96551.0,96550.0,0.37820515]
[1736313442519,0.00726238,96551.0,96550.0,0.48223956]
[1736313443307,0.00081843,96583.0,96550.0,0.48223956]
[1736313443308,0.00081843,96583.0,96567.0,0.1318]
[1736313443513,0.00097132,96583.0,96576.0,0.207089]
[1736313443710,0.00097132,96583.0,96577.0,0.09903441]
[1736313443969,0.00097132,96583.0,96578.0,0.03061234]
[1736313444173,0.00023799,96583.0,96579.0,0.09903441]
[1736313444577,0.00073333,96582.0,96579.0,0.09903441]
[1736313445036,0.20781133,96582.0,96579.0,0.09903441]
[1736313445459,0.02894547,96578.0,96564.0,0.13827998]
[1736313445725,0.02894547,96578.0,96547.0,0.07105453]
[1736313445726,0.02894547,96568.0,96559.0,0.13827998]
[1736313445940,0.207123,96561.0,96559.0,0.13827998]
[1736313446145,0.00073333,96560.0,96559.0,0.13827998]
[1736313446351,0.207142,96552.0,96547.0,0.13827998]
[1736313446557,0.207146,96550.0,96548.0,0.09903441]
[1736313447217,0.207135,96556.0,96549.0,0.00990344]
[1736313447418,0.207135,96556.0,96549.0,0.10893785]
[1736313447601,0.001,96552.0,96550.0,0.09903441]
[1736313447842,0.001,96552.0,96551.0,0.01089379]
[1736313448048,0.00073333,96571.0,96551.0,0.1928282]
[1736313448286,0.00073333,96570.0,96557.0,0.207129]
[1736313448499,0.00073333,96570.0,96558.0,0.09903441]
[1736313449319,0.00088619,96572.0,96558.0,0.30616341]
[1736313449495,0.00015286,96572.0,96560.0,0.0471]
[1736313449755,0.00015286,96572.0,96562.0,0.20712]
[1736313449921,0.00015286,96572.0,96564.0,0.207116]
[1736313450224,0.00015286,96572.0,96565.0,0.09903441]
[1736313450614,0.00115286,96572.0,96565.0,0.09903441]
[1736313451232,0.00015286,96572.0,96565.0,0.09903441]
[1736313451434,0.00015286,96572.0,96566.0,0.07826716]
[1736313451638,0.00115286,96572.0,96567.0,0.09903441]
[1736313452826,0.00015286,96572.0,96567.0,0.09903441]
[1736313453228,0.00115286,96572.0,96567.0,0.09903441]
[1736313453576,0.00115286,96572.0,96568.0,0.207107]
[1736313453778,0.00015286,96572.0,96569.0,0.17814222]
[1736313453990,0.00115286,96572.0,96569.0,0.17814222]
[1736313454320,0.00015286,96572.0,96571.0,0.17008894]
[1736313454525,0.00015286,96572.0,96571.0,0.33310515]
[1736313454763,8.51e-05,96585.0,96571.0,0.43213956]
[1736313454979,8.51e-05,96585.0,96584.0,0.207073]
[1736313455186,8.51e-05,96585.0,96584.0,0.30610741]
[1736313455392,8.51e-05,96585.0,96584.0,0.43582362]
[1736313455798,8.51e-05,96585.0,96584.0,0.6665921]
[1736313456019,8.51e-05,96585.0,96584.0,0.76562651]
[1736313456226,8.51e-05,96585.0,96584.0,0.53485803]
[1736313456627,8.51e-05,96585.0,96584.0,0.68441256]
[1736313456834,8.51e-05,96585.0,96584.0,0.9629228]
[1736313457236,8.51e-05,96585.0,96584.0,0.68441256]
[1736313460129,8.51e-05,96585.0,96584.0,0.68425978]
[1736313460332,8.51e-05,96585.0,96584.0,0.71647261]
[1736313462333,8.51e-05,96585.0,96584.0,0.60024357]
[1736313462541,8.51e-05,96585.0,96584.0,0.73161406]
[1736313463103,8.51e-05,96585.0,96584.0,0.32226882]
[1736313463733,8.51e-05,96585.0,96584.0,0.09903441]
[1736313464308,8.51e-05,96585.0,96584.0,0.28405164]
[1736313464906,8.51e-05,96585.0,96584.0,0.09903441]
[1736313465307,8.51e-05,96585.0,96584.0,0.33030595]
[1736313465734,8.51e-05,96585.0,96584.0,0.09903441]
[1736313467833,4.575e-05,96589.0,96584.0,0.09903441]
[1736313468035,4.575e-05,96589.0,96585.0,0.09903441]
[1736313469364,4.575e-05,96589.0,96586.0,0.207069]
[1736313469568,0.23209905,96603.0,96587.0,0.09903441]
[1736313469757,0.207037,96601.0,96587.0,0.09903441]
[1736313469958,0.207037,96601.0,96588.0,0.05834989]
[1736313470153,0.207037,96601.0,96589.0,0.09903441]
[1736313470562,0.207037,96601.0,96597.0,0.13907326]
[1736313470789,0.207037,96601.0,96598.0,0.09903441]
[1736313471014,0.207041,96599.0,96598.0,0.09903441]
[1736313471203,0.31792926,96598.0,96597.0,0.01644826]
[1736313471402,0.04492926,96595.0,96594.0,0.23178877]
[1736313472026,0.207072,96585.0,96565.0,0.18574026]
[1736313472198,0.207072,96585.0,96566.0,0.09903441]
[1736313472776,0.03926552,96598.0,96569.0,0.0822]
[1736313472925,0.03926552,96598.0,96574.0,0.14613441]
[1736313472926,0.207056,96593.0,96574.0,0.14613441]
[1736313473135,0.207056,96593.0,96575.0,0.18574026]
[1736313473333,0.207056,96593.0,96576.0,0.09903441]
[1736313473545,0.22303979,96593.0,96576.0,0.09903441]
[1736313473751,0.22303979,96593.0,96580.0,0.18574026]
[1736313474077,0.207056,96593.0,96581.0,0.09903441]
[1736313474505,0.209056,96593.0,96581.0,0.09903441]
[1736313474931,0.23203979,96593.0,96581.0,0.09903441]
[1736313475130,0.216056,96593.0,96581.0,0.09903441]
[1736313475333,0.002,96593.0,96582.0,0.0540206]
[1736313475542,0.002,96593.0,96583.0,0.09903441]
[1736313475743,0.007,96593.0,96583.0,0.30610941]
[1736313475953,0.007,96593.0,96583.0,0.49184967]
[1736313476159,0.008,96593.0,96584.0,0.09903441]
[1736313476365,0.015,96593.0,96585.0,0.09903441]
[1736313476573,0.014,96593.0,96585.0,0.09903441]
[1736313476820,0.014,96593.0,96587.0,0.18574026]
[1736313477027,0.015,96593.0,96588.0,0.17098652]
[1736313477491,0.014,96593.0,96588.0,0.17098652]
[1736313477661,0.01035538,96599.0,96588.0,0.17098652]
[1736313477831,0.007,96593.0,96588.0,0.09903441]
[1736313478046,0.007,96593.0,96588.0,0.28477467]
[1736313478452,0.013,96593.0,96588.0,0.28577467]
[1736313478859,0.013,96593.0,96588.0,0.10003441]
[1736313479031,0.012,96593.0,96589.0,0.0779]
[1736313479234,0.012,96593.0,96590.0,0.09903441]
[1736313479487,0.013,96593.0,96590.0,0.51315441]
[1736313480016,0.013,96593.0,96588.0,0.001]
[1736313480017,0.02894547,96589.0,96588.0,0.001]
[1736313480430,0.207058,96591.0,96588.0,0.001]
[1736313480431,0.02894547,96591.0,96588.0,0.001]
[1736313480677,0.02894547,96590.0,96586.0,0.23178877]
[1736313480889,0.414125,96589.0,96574.0,0.13929296]
[1736313481110,0.414125,96589.0,96575.0,0.09903441]
[1736313481593,0.02894547,96575.0,96574.0,0.13929296]
[1736313481819,0.01762281,96593.0,96573.0,0.13929296]
[1736313481820,0.27502426,96574.0,96573.0,0.13929296]
[1736313482028,0.02894547,96559.0,96557.0,0.13929296]
[1736313482254,0.207129,96558.0,96557.0,0.13929296]
[1736313482667,0.207129,96558.0,96545.0,0.09903441]
[1736313482872,0.41426,96558.0,96545.0,0.09903441]
[1736313483453,0.202649,96558.0,96545.0,0.09903441]
[1736313483705,0.202649,96558.0,96545.0,0.09918727]
[1736313484038,0.203649,96558.0,96545.0,0.09918727]
[1736313484944,0.203649,96558.0,96545.0,0.10018727]
[1736313484945,0.02894547,96554.0,96545.0,0.10018727]
[1736313485150,0.02894547,96553.0,96545.0,0.10018727]
[1736313485369,0.207142,96552.0,96545.0,0.10018727]
[1736313485775,0.207131,96557.0,96545.0,0.10018727]
[1736313485941,0.03494547,96558.0,96545.0,0.10018727]
[1736313486144,0.207128,96559.0,96546.0,0.01001873]
[1736313486348,0.002,96558.0,96547.0,0.09903441]
[1736313486919,0.207129,96558.0,96547.0,0.09903441]
[1736313487964,0.004,96553.0,96547.0,0.09903441]
[1736313488530,0.004,96553.0,96548.0,0.0831]
[1736313488732,0.004,96553.0,96549.0,0.09903441]
[1736313489144,0.002,96558.0,96549.0,0.09903441]
[1736313489357,0.004,96553.0,96549.0,0.09903441]
[1736313489780,0.005,96553.0,96549.0,0.09903441]
[1736313490009,0.005,96553.0,96550.0,0.25449155]
[1736313490219,0.004,96553.0,96552.0,0.207142]
[1736313490436,0.004,96553.0,96552.0,0.30617641]
[1736313490620,0.007,96553.0,96552.0,0.30617641]
[1736313490820,0.007,96553.0,96552.0,0.40521082]
[1736313491690,0.008,96553.0,96552.0,0.68508156]
[1736313491905,0.001,96553.0,96552.0,0.68508156]
[1736313492111,0.01598379,96592.0,96574.0,0.0825]
[1736313492112,0.207058,96591.0,96574.0,0.0825]
[1736313492311,0.207058,96591.0,96575.0,0.09903441]
[1736313492491,0.01058922,96592.0,96575.0,0.11718785]
[1736313492702,0.207036,96602.0,96575.0,0.11718785]
[1736313492703,0.02894547,96596.0,96576.0,0.20709]
[1736313492906,0.02894547,96597.0,96577.0,0.14573441]
[1736313493133,0.20705,96595.0,96577.0,0.19540321]
[1736313493350,0.009,96591.0,96577.0,0.19540321]
[1736313493553,0.009,96591.0,96578.0,0.207086]
[1736313493754,0.20714497,96595.0,96578.0,0.207086]
[1736313493755,0.20714497,96595.0,96579.0,0.09903441]
[1736313493970,9.497e-05,96595.0,96580.0,0.16824233]
[1736313494214,9.497e-05,96595.0,96581.0,0.08401621]
[1736313494511,9.497e-05,96595.0,96582.0,0.09903441]
[1736313494755,9.497e-05,96595.0,96583.0,0.207074]
[1736313495035,9.497e-05,96595.0,96585.0,0.207071]
[1736313495289,9.497e-05,96595.0,96587.0,0.207067]
[1736313495525,9.497e-05,96595.0,96589.0,0.207062]
[1736313495762,9.497e-05,96595.0,96591.0,0.207058]
[1736313496004,0.00109497,96595.0,96593.0,0.207054]
[1736313496213,0.00509497,96595.0,96594.0,0.15116336]
[1736313496434,0.00409497,96595.0,96594.0,0.15116336]
[1736313496647,0.00709497,96595.0,96594.0,0.15116336]
[1736313497093,0.00109497,96595.0,96594.0,0.09903441]
[1736313497317,0.00309497,96595.0,96594.0,0.09903441]
[1736313498004,0.00209497,96595.0,96594.0,0.09903441]
[1736313499332,9.497e-05,96595.0,96594.0,0.09903441]
[1736313500728,0.00209497,96595.0,96594.0,0.09903441]
[1736313500926,0.207064,96589.0,96579.0,0.0821]
[1736313501154,0.207064,96589.0,96580.0,0.09903441]
[1736313501371,0.207055,96593.0,96580.0,0.09903441]
[1736313501609,0.207066,96588.0,96580.0,0.09903441]
[1736313502359,0.207055,96593.0,96580.0,0.09903441]
[1736313502586,0.208055,96593.0,96580.0,0.09903441]
[1736313503152,0.207055,96593.0,96580.0,0.09903441]
[1736313503425,0.207055,96593.0,96580.0,0.10003441]
[1736313503754,0.207055,96593.0,96580.0,0.09903441]
[1736313503936,0.208055,96593.0,96580.0,0.09903441]
[1736313504183,0.41411,96593.0,96580.0,0.09903441]
[1736313504394,0.207064,96589.0,96580.0,0.09903441]
[1736313504599,0.02894547,96591.0,96580.0,0.09903441]
[1736313504928,0.207074,96584.0,96580.0,0.09903441]
[1736313505152,0.207062,96589.0,96580.0,0.09903441]
[1736313506205,0.001,96584.0,96580.0,0.09903441]
[1736313506411,0.207056,96593.0,96580.0,0.09903441]
[1736313506631,0.001,96589.0,96580.0,0.09903441]
[1736313506766,0.004,96589.0,96580.0,0.09903441]
[1736313507645,0.211065,96589.0,96580.0,0.09903441]
[1736313507861,0.210065,96589.0,96580.0,0.09903441]
[1736313508896,0.414146,96584.0,96580.0,0.09903441]
[1736313509114,0.207096,96574.0,96568.0,0.13906523]
[1736313509329,0.207096,96574.0,96569.0,0.09903441]
[1736313510592,0.207086,96579.0,96569.0,0.09903441]
[1736313511012,0.207086,96579.0,96569.0,0.10003441]
[1736313511013,0.009,96574.0,96569.0,0.10003441]
[1736313511242,0.207086,96579.0,96569.0,0.09903441]
[1736313512676,0.006,96574.0,96569.0,0.10003441]
[1736313513309,0.417172,96579.0,96569.0,0.09903441]
[1736313513641,0.207095,96575.0,96569.0,0.09903441]
[1736313513852,0.02894547,96572.0,96559.0,0.082]
[1736313514070,0.02894547,96572.0,96554.0,0.18542031]
[1736313514071,0.207122,96562.0,96554.0,0.13906523]
[1736313514275,0.207122,96562.0,96555.0,0.09903441]
[1736313514897,0.23605547,96567.0,96555.0,0.09903441]
[1736313515366,0.2361504,96567.0,96555.0,0.09903441]
[1736313516316,9.493e-05,96567.0,96556.0,0.02293344]
[1736313516514,9.493e-05,96567.0,96557.0,0.09903441]
[1736313516715,0.00409493,96567.0,96557.0,0.09903441]
[1736313517305,0.207112,96566.0,96557.0,0.09903441]
[1736313517515,0.00409493,96567.0,96551.0,0.0811]
[1736313517516,0.207134,96556.0,96551.0,0.0811]
[1736313517717,0.207134,96556.0,96552.0,0.09903441]
[1736313519397,0.414268,96556.0,96552.0,0.09903441]
[1736313519609,0.207122,96561.0,96552.0,0.09903441]
[1736313519809,0.02894547,96562.0,96552.0,0.09903441]
[1736313520017,0.004,96556.0,96552.0,0.09903441]
[1736313520165,0.005,96556.0,96552.0,0.09903441]
[1736313520817,0.001,96556.0,96552.0,0.09903441]
[1736313521213,0.001,96556.0,96552.0,0.10003441]
[1736313521578,0.006,96562.0,96553.0,0.01811344]
[1736313521781,0.008,96562.0,96554.0,0.09903441]
[1736313522341,0.006,96562.0,96554.0,0.09903441]
[1736313522527,0.001,96556.0,96554.0,0.09903441]
[1736313522728,0.005,96556.0,96554.0,0.09903441]
[1736313523162,0.004,96556.0,96554.0,0.09903441]
[1736313523362,0.004,96556.0,96554.0,0.10003441]
[1736313523767,0.002,96562.0,96554.0,0.09903441]
[1736313524043,0.004,96556.0,96554.0,0.09903441]
[1736313524860,0.005,96556.0,96554.0,0.09903441]
[1736313525627,0.001,96556.0,96554.0,0.09903441]
[1736313526047,0.001,96556.0,96554.0,0.10003441]
[1736313526255,0.001,96556.0,96554.0,0.09903441]
[1736313526671,0.005,96556.0,96554.0,0.09903441]
[1736313528388,0.005,96556.0,96555.0,0.41515121]
[1736313528608,0.005,96556.0,96555.0,0.59342403]
[1736313529171,9.493e-05,96567.0,96555.0,0.59342403]
[1736313529377,9.493e-05,96567.0,96562.0,0.0823]
[1736313529582,9.493e-05,96567.0,96563.0,0.09903441]
[1736313530021,9.493e-05,96567.0,96564.0,0.207116]
[1736313530238,9.493e-05,96567.0,96565.0,0.09903441]
[1736313530847,0.00309493,96567.0,96565.0,0.09903441]
[1736313532678,9.493e-05,96567.0,96565.0,0.09903441]
[1736313533048,0.00409493,96567.0,96565.0,0.09903441]
[1736313533455,0.00309493,96567.0,96565.0,0.09903441]
[1736313533920,0.00109493,96567.0,96565.0,0.09903441]
[1736313534391,0.00209493,96567.0,96565.0,0.09903441]
[1736313534568,0.00109493,96567.0,96565.0,0.09903441]
[1736313535636,9.493e-05,96567.0,96565.0,0.09903441]
[1736313535850,0.00109493,96567.0,96565.0,0.09903441]
[1736313536059,0.00209493,96567.0,96565.0,0.09903441]
[1736313536461,0.00109493,96567.0,96565.0,0.09903441]
[1736313536670,0.00209493,96567.0,96565.0,0.09903441]
[1736313536872,0.00109493,96567.0,96565.0,0.09903441]
[1736313537098,0.00209493,96567.0,96565.0,0.09903441]
[1736313537293,0.00109493,96567.0,96565.0,0.09903441]
[1736313537675,0.00209493,96567.0,96565.0,0.09903441]
[1736313537878,9.493e-05,96567.0,96565.0,0.09903441]
[1736313538831,0.00109493,96567.0,96565.0,0.09903441]
[1736313539219,0.00209493,96567.0,96565.0,0.09903441]
[1736313539430,0.00109493,96567.0,96565.0,0.09903441]
[1736313539629,9.493e-05,96567.0,96565.0,0.09903441]
[1736313539842,0.00109493,96567.0,96565.0,0.09903441]
[1736313540626,0.00209493,96567.0,96565.0,0.09903441]
[1736313540834,0.00109493,96567.0,96565.0,0.09903441]
[1736313541251,0.00209493,96567.0,96565.0,0.09903441]
[1736313541616,0.00109493,96567.0,96565.0,0.09903441]
[1736313541826,0.00209493,96567.0,96565.0,0.09903441]
[1736313542510,0.00109493,96567.0,96565.0,0.09903441]
[1736313542686,0.00209493,96567.0,96565.0,0.09903441]
[1736313542993,0.00109493,96567.0,96565.0,0.09903441]
[1736313543765,0.00209493,96567.0,96565.0,0.09903441]
[1736313544312,3.16e-06,96567.0,96566.0,0.0712947]
[1736313544505,0.00100316,96567.0,96566.0,0.17032911]
[1736313544744,0.00200316,96567.0,96566.0,0.17032911]
[1736313545293,3.16e-06,96567.0,96566.0,0.17032911]
[1736313545507,3.16e-06,96567.0,96566.0,0.29612911]
[1736313545740,3.16e-06,96567.0,96566.0,0.36718364]
[1736313545741,0.00100316,96567.0,96566.0,0.36718364]
[1736313545900,0.00100316,96567.0,96566.0,0.45119985]
[1736313546116,0.00100316,96567.0,96566.0,0.46175713]
[1736313546323,3.16e-06,96567.0,96566.0,0.46175713]
[1736313546540,0.00100316,96567.0,96566.0,0.46175713]
[1736313546725,3.16e-06,96567.0,96566.0,0.46175713]
[1736313547657,0.00100316,96567.0,96566.0,0.46875713]
[1736313548056,0.00100316,96567.0,96566.0,0.47075713]
[1736313549688,3.16e-06,96567.0,96566.0,0.46375713]
[1736313550100,0.0009874,96593.0,96581.0,0.07105453]
[1736313550300,0.0009874,96593.0,96567.0,0.82844]
[1736313550301,0.0009874,96593.0,96587.0,0.09903441]
[1736313550524,8.51e-05,96605.0,96592.0,0.08401621]
[1736313550736,8.51e-05,96605.0,96598.0,0.207042]
[1736313550737,0.00059446,96605.0,96598.0,0.207042]
[1736313550947,0.00059446,96605.0,96599.0,0.21044023]
[1736313551445,0.00059446,96605.0,96600.0,0.253439]
[1736313551617,0.00059446,96605.0,96601.0,0.09903441]
[1736313552251,0.00059446,96605.0,96601.0,0.23806323]
[1736313552453,0.00059446,96605.0,96602.0,0.09903441]
[1736313552664,0.00059446,96605.0,96603.0,0.09903441]
[1736313552821,0.00159446,96605.0,96603.0,0.09903441]
[1736313553259,0.00059446,96605.0,96603.0,0.09903441]
[1736313553464,0.00059446,96605.0,96604.0,0.20703]
[1736313553658,0.00059446,96605.0,96604.0,0.09903441]
[1736313554271,0.00059446,96605.0,96604.0,0.18729058]
[1736313557850,0.00059446,96605.0,96604.0,0.09903441]
[1736313560571,0.00059446,96605.0,96604.0,0.17873441]
[1736313561636,0.00059446,96605.0,96604.0,0.33380515]